[Event "Live Chess"]
[Site "Chess.com"]
[Date "2023.05.20"]
[Round "-"]
[White "JanMur7"]
[Black "fso"]
[Result "0-1"]
[WhiteElo "1955"]
[BlackElo "2237"]
[TimeControl "300"]
[EndTime "15:22:30 PDT"]
[Termination "fso won by checkmate"]

1. e4 {[%clk 0:04:52.7]} 1... c5 {[%clk 0:04:55.5]} 2. Nf3 {[%clk 0:04:35.2]}
2... d6 {[%clk 0:04:49.9]} 3. c3 {[%clk 0:04:32.9]} 3... Nf6 {[%clk 0:04:48.6]}
4. Be2 {[%clk 0:04:31.8]} 4... g6 {[%clk 0:04:43.6]} 5. O-O {[%clk 0:04:29.7]}
5... Bg7 {[%clk 0:04:42.6]} 6. d3 {[%clk 0:04:27.3]} 6... O-O {[%clk 0:04:40.8]}
7. Nbd2 {[%clk 0:04:25.6]} 7... Nbd7 {[%clk 0:04:35.8]} 8. Re1 {[%clk
0:04:22.3]} 8... a6 {[%clk 0:04:34]} 9. Nf1 {[%clk 0:04:21.6]} 9... b5 {[%clk
0:04:32.6]} 10. a4 {[%clk 0:04:20.9]} 10... Bb7 {[%clk 0:04:30.4]} 11. axb5
{[%clk 0:04:11.5]} 11... axb5 {[%clk 0:04:30.3]} 12. Rxa8 {[%clk 0:04:05.8]}
12... Qxa8 {[%clk 0:04:28.6]} 13. Be3 {[%clk 0:04:05.7]} 13... Ng4 {[%clk
0:04:19.1]} 14. h3 {[%clk 0:03:47.6]} 14... Nxe3 {[%clk 0:04:15.8]} 15. Nxe3
{[%clk 0:03:47.5]} 15... b4 {[%clk 0:04:04]} 16. Qc2 {[%clk 0:03:41.5]} 16...
bxc3 {[%clk 0:03:59.7]} 17. bxc3 {[%clk 0:03:41.4]} 17... c4 {[%clk 0:03:57.7]}
18. Nxc4 {[%clk 0:03:37.1]} 18... d5 {[%clk 0:03:44.7]} 19. exd5 {[%clk
0:03:33.6]} 19... Bxd5 {[%clk 0:03:43.3]} 20. Ne3 {[%clk 0:03:32.2]} 20... Rc8
{[%clk 0:03:35.2]} 21. d4 {[%clk 0:03:25.1]} 21... Be4 {[%clk 0:03:22.7]} 22.
Bd3 {[%clk 0:03:20]} 22... Bxf3 {[%clk 0:03:21.4]} 23. gxf3 {[%clk 0:03:17.6]}
23... Qxf3 {[%clk 0:03:11.3]} 24. Bf1 {[%clk 0:03:15.7]} 24... Bxd4 {[%clk
0:03:05.2]} 25. Qd3 {[%clk 0:03:11.5]} 25... Bxe3 {[%clk 0:02:43.4]} 26. Rxe3
{[%clk 0:03:11.4]} 26... Qc6 {[%clk 0:02:32.3]} 27. Rxe7 {[%clk 0:03:05]} 27...
Nf6 {[%clk 0:02:21.8]} 28. Re3 {[%clk 0:02:59.7]} 28... Rc7 {[%clk 0:02:12.1]}
29. Bg2 {[%clk 0:02:54.5]} 29... Qc5 {[%clk 0:02:09.7]} 30. Qd4 {[%clk
0:02:49.8]} 30... Kg7 {[%clk 0:01:55.3]} 31. Qxc5 {[%clk 0:02:33.3]} 31... Rxc5
{[%clk 0:01:54]} 32. Kh2 {[%clk 0:02:32.3]} 32... Nh5 {[%clk 0:01:50]} 33. Rd3
{[%clk 0:02:28.5]} 33... f5 {[%clk 0:01:42.7]} 34. Rd7+ {[%clk 0:02:24.7]} 34...
Kh6 {[%clk 0:01:41.2]} 35. Rd3 {[%clk 0:02:22.2]} 35... Nf4 {[%clk 0:01:37.1]}
36. Re3 {[%clk 0:02:20.5]} 36... Kg5 {[%clk 0:01:30.1]} 37. Kg3 {[%clk
0:02:13.9]} 37... Nd5 {[%clk 0:01:13.8]} 38. Bxd5 {[%clk 0:02:11]} 38... f4+
{[%clk 0:01:13]} 39. Kf3 {[%clk 0:02:04.5]} 39... fxe3 {[%clk 0:01:12.1]} 40.
Be4 {[%clk 0:02:02.7]} 40... exf2 {[%clk 0:01:09.9]} 41. Kxf2 {[%clk 0:02:00.6]}
41... Rxc3 {[%clk 0:01:08.6]} 42. Bf3 {[%clk 0:01:59]} 42... Kf4 {[%clk
0:01:07.2]} 43. Bg4 {[%clk 0:01:57.8]} 43... h5 {[%clk 0:01:05.8]} 44. Bd7
{[%clk 0:01:55.6]} 44... g5 {[%clk 0:01:04.4]} 45. Be6 {[%clk 0:01:52.4]} 45...
g4 {[%clk 0:00:58.5]} 46. hxg4 {[%clk 0:01:51.2]} 46... hxg4 {[%clk 0:00:58.4]}
47. Kg1 {[%clk 0:01:50.6]} 47... g3 {[%clk 0:00:52.5]} 48. Bd5 {[%clk
0:01:47.7]} 48... Rc2 {[%clk 0:00:48.8]} 49. Bg2 {[%clk 0:01:47.6]} 49... Ke3
{[%clk 0:00:47.2]} 50. Bf1 {[%clk 0:01:47.5]} 50... Kf3 {[%clk 0:00:38.8]} 51.
Kh1 {[%clk 0:01:45.1]} 51... Rc1 {[%clk 0:00:35.7]} 52. Kg1 {[%clk 0:01:43.7]}
52... g2 {[%clk 0:00:34]} 53. Kh2 {[%clk 0:01:43.1]} 53... Rxf1 {[%clk
0:00:30.1]} 54. Kh3 {[%clk 0:01:40.9]} 54... Rh1# {[%clk 0:00:30]} 0-1

[Event "Live Chess"]
[Site "Chess.com"]
[Date "2023.05.20"]
[Round "-"]
[White "mikkyb4"]
[Black "Ferrarifan27"]
[Result "0-1"]
[WhiteElo "1002"]
[BlackElo "2063"]
[TimeControl "300"]
[EndTime "15:22:40 PDT"]
[Termination "Ferrarifan27 won by resignation"]

1. e4 {[%clk 0:04:58.6]} 1... e5 {[%clk 0:04:57.8]} 2. Nc3 {[%clk 0:04:57.3]}
2... Nc6 {[%clk 0:04:56.1]} 3. Bc4 {[%clk 0:04:55.6]} 3... Bc5 {[%clk
0:04:54.3]} 4. Qg4 {[%clk 0:04:54.4]} 4... g6 {[%clk 0:04:52.7]} 5. Qf3 {[%clk
0:04:52.4]} 5... Qf6 {[%clk 0:04:51.6]} 6. Nd5 {[%clk 0:04:47.3]} 6... Qxf3
{[%clk 0:04:48]} 7. Nxf3 {[%clk 0:04:46.6]} 7... Bb6 {[%clk 0:04:45.1]} 8. d3
{[%clk 0:04:27.7]} 8... d6 {[%clk 0:04:43.6]} 9. Bg5 {[%clk 0:04:21]} 9... Bg4
{[%clk 0:04:38.7]} 10. Nf6+ {[%clk 0:04:16.3]} 10... Nxf6 {[%clk 0:04:36]} 11.
Bxf6 {[%clk 0:04:15.2]} 11... O-O {[%clk 0:04:30.8]} 12. Ng5 {[%clk 0:03:58.8]}
12... h6 {[%clk 0:04:23.8]} 13. Nh3 {[%clk 0:03:53.9]} 13... Bxh3 {[%clk
0:04:21.7]} 14. gxh3 {[%clk 0:03:53]} 14... Nd4 {[%clk 0:04:18.3]} 15. O-O-O
{[%clk 0:03:50.1]} 15... Ne2+ {[%clk 0:04:11]} 16. Kb1 {[%clk 0:03:40.9]} 16...
Nf4 {[%clk 0:04:09.9]} 17. Rhg1 {[%clk 0:03:35.3]} 17... Bxf2 {[%clk 0:04:02.8]}
18. Rg4 {[%clk 0:03:28.2]} 18... Bb6 {[%clk 0:03:58.9]} 19. c3 {[%clk
0:03:14.5]} 19... Kh7 {[%clk 0:03:55.1]} 20. d4 {[%clk 0:03:09.2]} 20... Nxh3
{[%clk 0:03:45.1]} 21. Rh4 {[%clk 0:02:58]} 21... Nf4 {[%clk 0:03:14.2]} 22. Bg5
{[%clk 0:02:34.5]} 22... Nh5 {[%clk 0:03:06.8]} 23. Be2 {[%clk 0:02:22.9]} 23...
hxg5 {[%clk 0:02:59.5]} 24. Rh3 {[%clk 0:02:16.6]} 24... exd4 {[%clk 0:02:55.5]}
25. Rg1 {[%clk 0:02:09.2]} 25... dxc3 {[%clk 0:02:47.4]} 26. Rxg5 {[%clk
0:02:06]} 26... Kh6 {[%clk 0:02:25.5]} 27. Rg2 {[%clk 0:01:54.2]} 27... cxb2
{[%clk 0:02:21.7]} 28. Bxh5 {[%clk 0:01:43.4]} 28... gxh5 {[%clk 0:02:19.9]} 29.
Rh4 {[%clk 0:01:27.9]} 29... Rg8 {[%clk 0:02:03.4]} 0-1

[Event "Live Chess"]
[Site "Chess.com"]
[Date "2023.05.20"]
[Round "-"]
[White "Horseymobile"]
[Black "diana21strabt"]
[Result "1-0"]
[WhiteElo "1278"]
[BlackElo "1693"]
[TimeControl "300"]
[EndTime "15:22:58 PDT"]
[Termination "Horseymobile won by resignation"]

1. d4 {[%clk 0:04:59]} 1... Nf6 {[%clk 0:04:57.7]} 2. c4 {[%clk 0:04:58.1]} 2...
g6 {[%clk 0:04:56.5]} 3. Nc3 {[%clk 0:04:57.4]} 3... Bg7 {[%clk 0:04:55.3]} 4.
e4 {[%clk 0:04:57]} 4... d6 {[%clk 0:04:54.1]} 5. Be2 {[%clk 0:04:55.5]} 5...
Nbd7 {[%clk 0:04:53.4]} 6. Bg5 {[%clk 0:04:54.6]} 6... e5 {[%clk 0:04:52]} 7. d5
{[%clk 0:04:49]} 7... O-O {[%clk 0:04:49.5]} 8. Nf3 {[%clk 0:04:46.8]} 8... h6
{[%clk 0:04:46.3]} 9. Be3 {[%clk 0:04:46]} 9... b6 {[%clk 0:04:44.5]} 10. O-O
{[%clk 0:04:44.2]} 10... Nc5 {[%clk 0:04:43.6]} 11. Qc2 {[%clk 0:04:38.8]} 11...
a5 {[%clk 0:04:40]} 12. a3 {[%clk 0:04:37.6]} 12... Bd7 {[%clk 0:04:37]} 13. b4
{[%clk 0:04:35.1]} 13... axb4 {[%clk 0:04:35.7]} 14. axb4 {[%clk 0:04:34.1]}
14... Rxa1 {[%clk 0:04:33.9]} 15. Rxa1 {[%clk 0:04:32.1]} 15... Nb7 {[%clk
0:04:33.2]} 16. Nd2 {[%clk 0:04:00.3]} 16... Nh7 {[%clk 0:04:28.6]} 17. Na4
{[%clk 0:03:52.7]} 17... f5 {[%clk 0:04:24.7]} 18. c5 {[%clk 0:03:44.9]} 18...
bxc5 {[%clk 0:04:17.4]} 19. bxc5 {[%clk 0:03:43.4]} 19... Bxa4 {[%clk
0:04:15.6]} 20. Rxa4 {[%clk 0:03:39.8]} 20... f4 {[%clk 0:04:11.1]} 21. c6
{[%clk 0:03:34.6]} 21... fxe3 {[%clk 0:04:08.6]} 22. cxb7 {[%clk 0:03:32.2]}
22... exd2 {[%clk 0:04:04.8]} 23. Ra8 {[%clk 0:03:28.6]} 23... Qf6 {[%clk
0:03:57.2]} 24. f3 {[%clk 0:03:17.7]} 24... Qd8 {[%clk 0:02:59.9]} 25. Rxd8
{[%clk 0:03:12.7]} 25... Rxd8 {[%clk 0:02:58.6]} 26. Qxd2 {[%clk 0:03:07.5]}
26... Nf6 {[%clk 0:02:48.7]} 27. Qc3 {[%clk 0:02:52.2]} 27... Ne8 {[%clk
0:02:38.8]} 28. Bb5 {[%clk 0:02:39.8]} 28... Rb8 {[%clk 0:02:35.7]} 29. Bc6
{[%clk 0:02:33.2]} 29... Nf6 {[%clk 0:02:26.6]} 30. Qa5 {[%clk 0:02:29.7]} 30...
Nd7 {[%clk 0:02:11.9]} 31. Qxc7 {[%clk 0:02:19.5]} 31... Rxb7 {[%clk 0:02:03.1]}
32. Bxb7 {[%clk 0:02:15.1]} 32... Nc5 {[%clk 0:02:01.3]} 33. Qxd6 {[%clk
0:02:04.9]} 33... Nxb7 {[%clk 0:01:59.6]} 34. Qb8+ {[%clk 0:02:04.2]} 34... Kh7
{[%clk 0:01:58.4]} 35. Qxb7 {[%clk 0:02:03.2]} 35... h5 {[%clk 0:01:55.6]} 36.
d6 {[%clk 0:02:02]} 1-0

[Event "Live Chess"]
[Site "Chess.com"]
[Date "2023.05.20"]
[Round "-"]
[White "elvenstar"]
[Black "JoeyCage"]
[Result "0-1"]
[WhiteElo "1573"]
[BlackElo "2319"]
[TimeControl "300"]
[EndTime "15:23:02 PDT"]
[Termination "JoeyCage won on time"]

1. e4 {[%clk 0:04:58.6]} 1... c5 {[%clk 0:04:58.2]} 2. f4 {[%clk 0:04:56.6]}
2... Nc6 {[%clk 0:04:57.3]} 3. Nf3 {[%clk 0:04:55.5]} 3... a6 {[%clk 0:04:56.4]}
4. Be2 {[%clk 0:04:53.2]} 4... b5 {[%clk 0:04:55.3]} 5. O-O {[%clk 0:04:51.9]}
5... g6 {[%clk 0:04:54.4]} 6. d4 {[%clk 0:04:48.1]} 6... cxd4 {[%clk 0:04:52.8]}
7. Nxd4 {[%clk 0:04:46.4]} 7... Bg7 {[%clk 0:04:50.3]} 8. c3 {[%clk 0:04:44.9]}
8... Bb7 {[%clk 0:04:45.4]} 9. Bf3 {[%clk 0:04:39.6]} 9... Nf6 {[%clk
0:04:40.6]} 10. Re1 {[%clk 0:04:33.3]} 10... O-O {[%clk 0:04:38.6]} 11. Qd3
{[%clk 0:04:20]} 11... Qc7 {[%clk 0:04:36.5]} 12. e5 {[%clk 0:04:04.8]} 12...
Ne8 {[%clk 0:04:32]} 13. Nxc6 {[%clk 0:03:50]} 13... Bxc6 {[%clk 0:04:29.6]} 14.
Bxc6 {[%clk 0:03:48.6]} 14... Qxc6 {[%clk 0:04:27.4]} 15. Be3 {[%clk 0:03:47]}
15... d6 {[%clk 0:04:24.8]} 16. Bd4 {[%clk 0:03:39.4]} 16... dxe5 {[%clk
0:04:23]} 17. fxe5 {[%clk 0:03:37.5]} 17... Nc7 {[%clk 0:04:21.4]} 18. Nd2
{[%clk 0:03:33.9]} 18... Rad8 {[%clk 0:04:19.4]} 19. Qe2 {[%clk 0:03:24.5]}
19... Ne6 {[%clk 0:04:17.5]} 20. Nf3 {[%clk 0:03:22.2]} 20... Nxd4 {[%clk
0:04:14.5]} 21. cxd4 {[%clk 0:03:19.4]} 21... Qd5 {[%clk 0:04:11.5]} 22. b3
{[%clk 0:03:14]} 22... Rc8 {[%clk 0:04:09.8]} 23. Rac1 {[%clk 0:03:11.5]} 23...
Bh6 {[%clk 0:04:08.6]} 24. Rc2 {[%clk 0:03:00.6]} 24... Rfd8 {[%clk 0:04:02.8]}
25. h3 {[%clk 0:02:44.5]} 25... a5 {[%clk 0:03:46.7]} 26. Nh2 {[%clk 0:02:24.2]}
26... Qxd4+ {[%clk 0:03:43.8]} 27. Kh1 {[%clk 0:02:21.2]} 27... Rxc2 {[%clk
0:03:41.1]} 28. Qxc2 {[%clk 0:02:19.3]} 28... Qd2 {[%clk 0:03:40.1]} 29. Qxd2
{[%clk 0:02:15.6]} 29... Rxd2 {[%clk 0:03:38.3]} 30. Ng4 {[%clk 0:02:10.3]}
30... Bf4 {[%clk 0:03:35.4]} 31. a4 {[%clk 0:01:50.9]} 31... bxa4 {[%clk
0:03:33.3]} 32. bxa4 {[%clk 0:01:49.1]} 32... h5 {[%clk 0:03:31.9]} 33. Nh2
{[%clk 0:01:23.6]} 33... Bxh2 {[%clk 0:03:29.6]} 34. Kxh2 {[%clk 0:01:22.4]}
34... Rd4 {[%clk 0:03:27.8]} 35. e6 {[%clk 0:01:03.2]} 35... f6 {[%clk
0:03:26.3]} 36. Rc1 {[%clk 0:00:57]} 36... Re4 {[%clk 0:03:13]} 37. Rc8+ {[%clk
0:00:28.3]} 37... Kg7 {[%clk 0:03:10.9]} 38. Ra8 {[%clk 0:00:22.4]} 38... Rxe6
{[%clk 0:03:02.4]} 39. Rxa5 {[%clk 0:00:20.7]} 39... Re3 {[%clk 0:02:57.6]} 40.
Rb5 {[%clk 0:00:17.8]} 40... Ra3 {[%clk 0:02:55.2]} 41. a5 {[%clk 0:00:11]}
41... e5 {[%clk 0:02:52.3]} 42. Kg1 {[%clk 0:00:03.9]} 42... Kh6 {[%clk
0:02:50.1]} 43. Rb6 {[%clk 0:00:01.6]} 43... f5 {[%clk 0:02:48.4]} 44. a6 {[%clk
0:00:00.3]} 44... e4 {[%clk 0:02:47]} 0-1

[Event "Live Chess"]
[Site "Chess.com"]
[Date "2023.05.20"]
[Round "-"]
[White "KeithArkell"]
[Black "nigelst"]
[Result "1-0"]
[WhiteElo "2607"]
[BlackElo "1831"]
[TimeControl "300"]
[EndTime "15:23:13 PDT"]
[Termination "KeithArkell won by resignation"]

1. d4 {[%clk 0:04:58.3]} 1... Nf6 {[%clk 0:04:58.1]} 2. Nf3 {[%clk 0:04:57.3]}
2... e6 {[%clk 0:04:57.1]} 3. c4 {[%clk 0:04:56.5]} 3... Bb4+ {[%clk 0:04:54.4]}
4. Bd2 {[%clk 0:04:55.4]} 4... Qe7 {[%clk 0:04:49.7]} 5. g3 {[%clk 0:04:54.3]}
5... Nc6 {[%clk 0:04:42.8]} 6. Nc3 {[%clk 0:04:51.9]} 6... Bxc3 {[%clk
0:04:39.9]} 7. Bxc3 {[%clk 0:04:51.8]} 7... Ne4 {[%clk 0:04:38.8]} 8. Rc1 {[%clk
0:04:49.5]} 8... Nxc3 {[%clk 0:04:37.7]} 9. Rxc3 {[%clk 0:04:48.5]} 9... d6
{[%clk 0:04:36.2]} 10. d5 {[%clk 0:04:48]} 10... Nb8 {[%clk 0:04:33.8]} 11. dxe6
{[%clk 0:04:46.8]} 11... fxe6 {[%clk 0:04:25.3]} 12. Bg2 {[%clk 0:04:46]} 12...
O-O {[%clk 0:04:22.7]} 13. O-O {[%clk 0:04:45.1]} 13... Nc6 {[%clk 0:04:20.7]}
14. Re1 {[%clk 0:04:39.5]} 14... e5 {[%clk 0:04:19.7]} 15. Nd2 {[%clk
0:04:33.8]} 15... Qf6 {[%clk 0:04:13.1]} 16. Ne4 {[%clk 0:04:32.6]} 16... Qe7
{[%clk 0:04:04.2]} 17. c5 {[%clk 0:04:30.5]} 17... d5 {[%clk 0:03:56.1]} 18.
Qxd5+ {[%clk 0:04:28.6]} 18... Be6 {[%clk 0:03:53.3]} 19. Qd2 {[%clk 0:04:27]}
19... Rad8 {[%clk 0:03:40.6]} 20. Qc2 {[%clk 0:04:13.6]} 20... Bf5 {[%clk
0:03:10.3]} 21. a3 {[%clk 0:04:05.5]} 21... Qf7 {[%clk 0:02:46.9]} 22. e3 {[%clk
0:04:00.2]} 22... Rd7 {[%clk 0:02:35.8]} 23. Qb3 {[%clk 0:03:43.1]} 23... Qxb3
{[%clk 0:02:19]} 24. Rxb3 {[%clk 0:03:41.7]} 24... Na5 {[%clk 0:02:12.9]} 25.
Rc3 {[%clk 0:03:27]} 25... Bxe4 {[%clk 0:02:01.4]} 26. Bxe4 {[%clk 0:03:25.5]}
26... Rd2 {[%clk 0:01:58.9]} 27. b4 {[%clk 0:03:23.2]} 27... Nc6 {[%clk
0:01:54.5]} 28. Rf1 {[%clk 0:03:04.7]} 28... Nd8 {[%clk 0:01:41.1]} 29. Rc2
{[%clk 0:03:03.4]} 29... Rxc2 {[%clk 0:01:39]} 30. Bxc2 {[%clk 0:03:03.3]} 30...
c6 {[%clk 0:01:35.6]} 31. Bb3+ {[%clk 0:03:02.6]} 31... Kh8 {[%clk 0:01:33.5]}
32. Rd1 {[%clk 0:03:02.3]} 32... g6 {[%clk 0:01:21.8]} 33. Rd7 {[%clk
0:03:00.9]} 33... b6 {[%clk 0:01:11.5]} 34. Rxa7 {[%clk 0:02:58.9]} 34... bxc5
{[%clk 0:01:10.5]} 35. bxc5 {[%clk 0:02:58.2]} 35... Ne6 {[%clk 0:01:08.6]} 36.
Bxe6 {[%clk 0:02:56.7]} 1-0

[Event "Live Chess"]
[Site "Chess.com"]
[Date "2023.05.20"]
[Round "-"]
[White "lateforthesky"]
[Black "WelshTiger"]
[Result "1-0"]
[WhiteElo "2118"]
[BlackElo "2376"]
[TimeControl "300"]
[EndTime "15:23:20 PDT"]
[Termination "lateforthesky won by resignation"]

1. e4 {[%clk 0:04:58.2]} 1... c5 {[%clk 0:04:55.4]} 2. Nf3 {[%clk 0:04:56.7]}
2... d6 {[%clk 0:04:55]} 3. Nc3 {[%clk 0:04:54.4]} 3... Nc6 {[%clk 0:04:51.9]}
4. g3 {[%clk 0:04:48.4]} 4... e5 {[%clk 0:04:50.1]} 5. Bg2 {[%clk 0:04:46.4]}
5... Nf6 {[%clk 0:04:49.6]} 6. O-O {[%clk 0:04:44.5]} 6... Be7 {[%clk 0:04:49]}
7. h3 {[%clk 0:04:42.6]} 7... O-O {[%clk 0:04:47.8]} 8. d3 {[%clk 0:04:41.3]}
8... Rb8 {[%clk 0:04:47.1]} 9. a4 {[%clk 0:04:40.2]} 9... Nd4 {[%clk 0:04:44.8]}
10. Bg5 {[%clk 0:04:27]} 10... Be6 {[%clk 0:04:38.2]} 11. Bxf6 {[%clk
0:04:19.1]} 11... Bxf6 {[%clk 0:04:36.9]} 12. Nd5 {[%clk 0:04:17.2]} 12... Bxd5
{[%clk 0:04:36.4]} 13. exd5 {[%clk 0:04:15.6]} 13... Qd7 {[%clk 0:04:31.1]} 14.
c3 {[%clk 0:04:12.1]} 14... Nxf3+ {[%clk 0:04:26.7]} 15. Qxf3 {[%clk 0:04:12]}
15... a6 {[%clk 0:04:21.6]} 16. Rfe1 {[%clk 0:03:38.7]} 16... b5 {[%clk
0:04:18.5]} 17. axb5 {[%clk 0:03:37.4]} 17... axb5 {[%clk 0:04:18.4]} 18. h4
{[%clk 0:03:31.2]} 18... Qe7 {[%clk 0:04:00.4]} 19. Ra6 {[%clk 0:03:21.5]} 19...
g6 {[%clk 0:03:53.5]} 20. Rea1 {[%clk 0:03:19]} 20... Bg7 {[%clk 0:03:51.6]} 21.
h5 {[%clk 0:02:59.1]} 21... b4 {[%clk 0:03:36.9]} 22. hxg6 {[%clk 0:02:50.7]}
22... hxg6 {[%clk 0:03:33.5]} 23. Rc6 {[%clk 0:02:44.5]} 23... bxc3 {[%clk
0:03:30.4]} 24. bxc3 {[%clk 0:02:43]} 24... Rb3 {[%clk 0:03:29.5]} 25. Raa6
{[%clk 0:02:37.4]} 25... Rd8 {[%clk 0:03:25.8]} 26. c4 {[%clk 0:02:34]} 26...
Bf8 {[%clk 0:03:20.1]} 27. Qd1 {[%clk 0:02:24.9]} 27... Qg5 {[%clk 0:03:14.3]}
28. Qxb3 {[%clk 0:02:21.4]} 28... Qc1+ {[%clk 0:03:10.4]} 29. Kh2 {[%clk
0:02:19.4]} 29... Qh6+ {[%clk 0:03:09.1]} 30. Bh3 {[%clk 0:02:15.5]} 30... Qd2
{[%clk 0:03:08]} 31. Kg2 {[%clk 0:02:11.6]} 31... Bh6 {[%clk 0:03:05.5]} 32. Ra2
{[%clk 0:02:08.5]} 32... Qe1 {[%clk 0:03:04.4]} 33. Rb6 {[%clk 0:02:00.8]} 33...
Kg7 {[%clk 0:02:56.1]} 34. Qc2 {[%clk 0:01:50.9]} 34... Bg5 {[%clk 0:02:42.6]}
35. Rb1 {[%clk 0:01:48.9]} 35... Qb4 {[%clk 0:02:18.4]} 36. Rxb4 {[%clk
0:01:45.7]} 36... cxb4 {[%clk 0:02:18.3]} 37. Rb2 {[%clk 0:01:42.2]} 37... Rb8
{[%clk 0:02:16.1]} 38. Qa4 {[%clk 0:01:38.7]} 38... Bd2 {[%clk 0:02:13.8]} 39.
Rxd2 {[%clk 0:01:36.1]} 1-0

[Event "Live Chess"]
[Site "Chess.com"]
[Date "2023.05.20"]
[Round "-"]
[White "DaveL5678"]
[Black "miguelchuk"]
[Result "0-1"]
[WhiteElo "1023"]
[BlackElo "1604"]
[TimeControl "300"]
[EndTime "15:23:21 PDT"]
[Termination "miguelchuk won by checkmate"]

1. e4 {[%clk 0:04:58]} 1... e5 {[%clk 0:04:58.3]} 2. Nf3 {[%clk 0:04:55.2]} 2...
Nc6 {[%clk 0:04:56.9]} 3. c3 {[%clk 0:04:54.4]} 3... Nf6 {[%clk 0:04:53.7]} 4.
d4 {[%clk 0:04:52.7]} 4... Nxe4 {[%clk 0:04:48.3]} 5. d5 {[%clk 0:04:51.4]} 5...
Bc5 {[%clk 0:04:32.2]} 6. Be3 {[%clk 0:04:15.5]} 6... Bxe3 {[%clk 0:03:44.5]} 7.
fxe3 {[%clk 0:04:10.9]} 7... Nb8 {[%clk 0:03:30.9]} 8. Nxe5 {[%clk 0:04:08.4]}
8... Qh4+ {[%clk 0:03:29.1]} 9. g3 {[%clk 0:03:59.7]} 9... Nxg3 {[%clk
0:03:19.1]} 10. hxg3 {[%clk 0:03:39.7]} 10... Qxh1 {[%clk 0:03:16.4]} 11. Qf3
{[%clk 0:03:37.6]} 11... Qxf3 {[%clk 0:03:14.4]} 12. Nxf3 {[%clk 0:03:37.1]}
12... d6 {[%clk 0:03:12.6]} 13. Nbd2 {[%clk 0:03:34.2]} 13... O-O {[%clk
0:03:10.2]} 14. O-O-O {[%clk 0:03:31.7]} 14... c6 {[%clk 0:03:00.8]} 15. Bd3
{[%clk 0:03:30]} 15... g6 {[%clk 0:02:53.3]} 16. Ng5 {[%clk 0:03:23.7]} 16... h6
{[%clk 0:02:46.5]} 17. Nge4 {[%clk 0:03:16.9]} 17... Bf5 {[%clk 0:02:39.9]} 18.
Nf6+ {[%clk 0:03:05.8]} 18... Kg7 {[%clk 0:02:36.3]} 19. Bxf5 {[%clk 0:02:54.6]}
19... Kxf6 {[%clk 0:02:29.8]} 20. Be4 {[%clk 0:02:46.2]} 20... Nd7 {[%clk
0:02:13.8]} 21. dxc6 {[%clk 0:02:42.4]} 21... bxc6 {[%clk 0:01:56.3]} 22. Bxc6
{[%clk 0:02:39.2]} 22... Rad8 {[%clk 0:01:53.4]} 23. Ne4+ {[%clk 0:02:34.5]}
23... Kg7 {[%clk 0:01:44.7]} 24. Rxd6 {[%clk 0:02:28.8]} 24... Ne5 {[%clk
0:01:38.4]} 25. Rxd8 {[%clk 0:01:24.5]} 25... Rxd8 {[%clk 0:01:36.6]} 26. Bb7
{[%clk 0:01:11.4]} 26... Ng4 {[%clk 0:01:27]} 27. Nc5 {[%clk 0:01:00.5]} 27...
Nxe3 {[%clk 0:01:19.8]} 28. Nb3 {[%clk 0:00:49.2]} 28... Rd1# {[%clk 0:01:17.8]}
0-1